fUSD/lending_fUSD_20251112
["ID","MTS","AMOUNT","RATE_DAILY","PERIOD"]
[393775029,1762975085172,-500.0,0.00053972,120]
[393775030,1762975085219,-500.0,0.00053972,120]
[393775031,1762975085266,-500.0,0.00053972,120]
[393775032,1762975085424,-500.0,0.00053972,120]
[393775033,1762975085470,-500.0,0.00053972,120]
[393775034,1762975085516,-500.0,0.00053972,120]
[393775035,1762975085563,-500.0,0.00053972,120]
[393775036,1762975085608,-500.0,0.00053972,120]
[393775037,1762975085652,-500.0,0.00053972,120]
[393775038,1762975085697,-711.22,0.00053972,120]
[393775039,1762975085739,-500.0,0.00053972,120]
[393775040,1762975085781,-500.0,0.00053972,120]
[393775041,1762975085824,-500.0,0.00053972,120]
[393775042,1762975085865,-500.0,0.00053972,120]
[393775043,1762975085907,-500.0,0.00053972,30]
[393775044,1762975085951,-500.0,0.00053972,120]
[393775045,1762975085994,-500.0,0.00053972,120]
[393775046,1762975086038,-561.35,0.00053972,120]
[393775047,1762975086081,-500.0,0.00053972,120]
[393775048,1762975086122,-561.9,0.00053972,120]
[393775049,1762975086163,-519.17,0.00053972,120]
[393775050,1762975086206,-500.0,0.00053972,120]
[393775051,1762975086250,-646.96,0.00053972,120]
[393775052,1762975086296,-500.0,0.00053972,120]
[393775053,1762975086341,-557.81,0.00053972,120]
[393775054,1762975086383,-604.92,0.00053972,120]
[393775055,1762975086428,-500.0,0.00053972,120]
[393775056,1762975086473,-693.64,0.00053972,120]
[393775057,1762975086516,-573.2,0.00053972,120]
[393775058,1762975086560,-500.0,0.00053972,120]
[393775059,1762975086602,-500.0,0.00053972,120]
[393775060,1762975086642,-500.0,0.00053972,120]
[393775061,1762975086685,-500.0,0.00053972,120]
[393775062,1762975086725,-500.0,0.00053972,120]
[393775063,1762975086764,-500.0,0.00053972,120]
[393775064,1762975086804,-307.96,0.00053972,120]
[393775065,1762975086843,-500.0,0.00053972,120]
[393775066,1762975086881,-500.0,0.00053972,120]
[393775067,1762975086920,-500.0,0.00053972,120]
[393775068,1762975086959,-500.0,0.00053972,120]
[393775069,1762975086999,-500.0,0.00053972,120]
[393775070,1762975087042,-500.0,0.00053972,120]
[393775071,1762975087086,-595.77,0.00053972,120]
[393775072,1762975087129,-374.63996234,0.00053972,120]
[393775073,1762975087174,-1143.27,0.00053972,120]
[393775074,1762975087219,-500.0,0.00053972,120]
[393775075,1762975087265,-500.0,0.00053972,120]
[393775076,1762975087311,-500.0,0.00053972,120]
[393775077,1762975087353,-362.93147662,0.00053972,120]
[393775078,1762975087397,-506.34,0.00053972,120]
[393775079,1762975087439,-500.0,0.00053972,120]
[393775080,1762975087479,-405.00459541,0.00053972,120]
[393775081,1762975087521,-537.88,0.00053972,120]
[393775082,1762975087563,-500.0,0.00053972,120]
[393775083,1762975087606,-500.0,0.00053972,120]
[393775084,1762975087647,-544.95,0.00053972,120]
[393775085,1762975087691,-1149.36,0.00053972,120]
[393775086,1762975087733,-718.5,0.00053972,120]
[393775087,1762975087773,-500.0,0.00053972,120]
[393775088,1762975087813,-3630.04,0.00053972,120]
[393775089,1762975087855,-500.0,0.00053972,120]
[393775090,1762975087896,-500.0,0.00053972,120]
[393775091,1762975087937,-500.0,0.00053972,120]
[393775092,1762975088059,-500.0,0.00053972,120]
[393775093,1762975088121,-500.0,0.00053972,120]
[393775094,1762975088168,-1045.04,0.00053972,120]
[393775095,1762975088213,-500.0,0.00053972,120]
[393775096,1762975088255,-513.61,0.00053972,120]
[393775097,1762975088308,-500.0,0.00053972,120]
[393775098,1762975088359,-500.0,0.00053972,120]
[393775099,1762975088406,-500.0,0.00053972,120]
[393775100,1762975088450,-597.53,0.00053972,120]
[393775101,1762975088492,-1779.43,0.00053972,120]
[393775102,1762975088533,-500.0,0.00053972,120]
[393775103,1762975088578,-500.0,0.00053972,120]
[393775104,1762975088624,-765.1,0.00053972,120]
[393775105,1762975088668,-500.0,0.00053972,120]
[393775106,1762975088710,-1309.98,0.00053972,120]
[393775107,1762975088754,-615.16,0.00053972,120]
[393775108,1762975088796,-500.0,0.00053972,120]
[393775109,1762975088840,-500.0,0.00053972,120]
[393775110,1762975088879,-372.4,0.00053972,120]
[393775111,1762975088924,-533.88,0.00053972,120]
[393775112,1762975088972,-500.0,0.00053972,120]
[393775113,1762975089020,-500.0,0.00053972,120]
[393775114,1762975089067,-500.0,0.00053972,120]
[393775115,1762975089115,-265.54,0.00053972,120]
[393775116,1762975089162,-500.0,0.00053972,120]
[393775117,1762975089207,-431.5473894,0.00053972,120]
[393775118,1762975089252,-500.0,0.00053972,120]
[393775119,1762975089297,-630.65,0.00053972,120]
[393775120,1762975089339,-500.0,0.00053972,120]
[393775121,1762975089380,-500.0,0.00053972,120]
[393775122,1762975089422,-533.82,0.00053972,120]
[393775123,1762975089464,-451.48171549,0.00053972,120]
[393775124,1762975089504,-500.0,0.00053972,120]
[393775125,1762975089541,-500.0,0.00053972,120]
[393775126,1762975089582,-345.1,0.00053972,120]
[393775127,1762975089620,-500.0,0.00053972,120]
[393775128,1762975089658,-500.0,0.00053972,60]
[393775129,1762975089699,-500.0,0.00053972,120]
[393775130,1762975089743,-476.72378797,0.00053972,120]
[393775131,1762975089788,-500.0,0.00053972,120]
[393775132,1762975089832,-500.0,0.00053972,120]
[393775133,1762975089870,-500.0,0.00053972,30]
[393775134,1762975089908,-500.0,0.00053972,120]
[393775135,1762975089946,-500.0,0.00053972,120]
[393775136,1762975089986,-500.0,0.00053972,120]
[393775137,1762975090033,-632.55,0.00053972,120]
[393775138,1762975090078,-500.0,0.00053972,120]
[393775139,1762975090120,-500.0,0.00053972,120]
[393775140,1762975090165,-200.0,0.00054,120]
[393775141,1762975090208,-1000.0,0.00054,120]
[393775142,1762975090253,-979.327613,0.00054232,120]
[393775143,1762975090302,-500.0,0.00054246,120]
[393775144,1762975090346,-500.0,0.00054246,120]
[393775145,1762975090390,-467.69910793,0.00054246,120]
[393775146,1762975090433,-500.0,0.00054246,60]
[393775147,1762975090480,-500.0,0.00054246,120]
[393775148,1762975090524,-500.0,0.00054246,120]
[393775149,1762975090567,-500.0,0.00054246,120]
[393775150,1762975090609,-500.0,0.00054246,120]
[393775151,1762975090768,-500.0,0.00054246,120]
[393775152,1762975090810,-500.0,0.00054246,120]
[393775153,1762975090850,-500.0,0.00054246,120]
[393775154,1762975090890,-500.0,0.00054246,120]
[393775155,1762975090934,-500.0,0.00054246,120]
[393775156,1762975090979,-500.0,0.00054246,120]
[393775157,1762975091022,-500.0,0.00054246,120]
[393775158,1762975091062,-500.0,0.00054246,120]
[393775159,1762975091102,-500.0,0.00054246,120]
[393775160,1762975091142,-500.0,0.00054246,120]
[393775161,1762975091180,-500.0,0.00054246,120]
[393775162,1762975091222,-649.50617445,0.00054246,120]
[393775163,1762975091264,-500.0,0.00054246,120]
[393775164,1762975091311,-184.16030113,0.00054246,120]
[393775165,1762975091357,-404.44330872,0.00054246,120]
[393775166,1762975091401,-500.0,0.00054246,120]
[393775167,1762975091446,-500.0,0.00054246,120]
[393775168,1762975091488,-500.0,0.00054246,120]
[393775169,1762975091530,-711.22,0.00054246,120]
[393775170,1762975091573,-500.0,0.00054246,120]
[393775171,1762975091615,-500.0,0.00054246,120]
[393775172,1762975091657,-500.0,0.00054246,120]
[393775173,1762975091698,-500.0,0.00054246,120]
[393775174,1762975091737,-500.0,0.00054246,30]
[393775175,1762975091780,-449.01804899,0.00054246,120]
[393775176,1762975091823,-500.0,0.00054246,120]
[393775177,1762975091866,-561.35,0.00054246,120]
[393775178,1762975091908,-500.0,0.00054246,120]
[393775179,1762975091949,-561.9,0.00054246,120]
[393775180,1762975091989,-519.17,0.00054246,120]
[393775181,1762975092031,-500.0,0.00054246,120]
[393775182,1762975092068,-500.0,0.00054246,120]
[393775183,1762975092107,-557.81,0.00054246,120]
[393775184,1762975092146,-604.92,0.00054246,120]
[393775185,1762975092189,-693.64,0.00054246,120]
[393775186,1762975092231,-573.2,0.00054246,120]
[393775187,1762975092273,-500.0,0.00054246,120]
[393775188,1762975092314,-500.0,0.00054246,120]
[393775189,1762975092355,-500.0,0.00054246,120]
[393775190,1762975092397,-500.0,0.00054246,120]
[393775191,1762975092435,-500.0,0.00054246,120]
[393775192,1762975092473,-150.16840599,0.00054246,120]
[393775193,1762975092519,-500.0,0.00054246,120]
[393775194,1762975092561,-500.0,0.00054246,120]
[393775195,1762975092604,-500.0,0.00054246,120]
[393775196,1762975092648,-500.0,0.00054246,120]
[393775197,1762975092691,-500.0,0.00054246,120]
[393775198,1762975092732,-595.77,0.00054246,120]
[393775199,1762975092773,-1143.27,0.00054246,120]
[393775200,1762975092815,-500.0,0.00054246,120]
[393775201,1762975092857,-500.0,0.00054246,120]
[393775202,1762975092898,-500.0,0.00054246,120]
[393775203,1762975092943,-506.34,0.00054246,120]
[393775204,1762975092987,-500.0,0.00054246,120]
[393775205,1762975093034,-537.88,0.00054246,120]
[393775206,1762975093075,-500.0,0.00054246,120]
[393775207,1762975093234,-1149.36,0.00054246,120]
[393775208,1762975093285,-718.5,0.00054246,120]
[393775209,1762975093331,-343.6702126,0.00054246,120]
[393775210,1762975093375,-3630.04,0.00054246,120]
[393775211,1762975093422,-500.0,0.00054246,120]
[393775212,1762975093467,-500.0,0.00054246,120]
[393775213,1762975093511,-500.0,0.00054246,120]
[393775214,1762975093551,-500.0,0.00054246,120]
[393775215,1762975093592,-500.0,0.00054246,120]
[393775216,1762975093635,-1045.04,0.00054246,120]
[393775217,1762975093677,-500.0,0.00054246,120]
[393775218,1762975093720,-513.61,0.00054246,120]
[393775219,1762975093760,-533.16683999,0.00054246,120]
[393775220,1762975093804,-500.0,0.00054246,120]
[393775221,1762975093849,-500.0,0.00054246,120]
[393775222,1762975093891,-597.53,0.00054246,120]
[393775223,1762975093932,-1779.43,0.00054246,120]
[393775224,1762975093975,-500.0,0.00054246,120]
[393775225,1762975094018,-500.0,0.00054246,120]
[393775226,1762975094067,-765.1,0.00054246,120]
[393775227,1762975094113,-500.0,0.00054246,120]
[393775228,1762975094158,-1309.98,0.00054246,120]
[393775229,1762975094204,-500.0,0.00054246,120]
[393775230,1762975094249,-562.46,0.00054246,120]
[393775231,1762975094294,-533.88,0.00054246,120]
[393775232,1762975094342,-500.0,0.00054246,120]
[393775233,1762975094388,-500.0,0.00054246,120]
[393775234,1762975094436,-500.0,0.00054246,120]
[393775235,1762975094480,-500.0,0.00054246,120]
[393775236,1762975094523,-630.65,0.00054246,120]
[393775237,1762975094564,-500.0,0.00054246,120]
[393775238,1762975094607,-500.0,0.00054246,120]
[393775239,1762975094647,-599.19,0.00054246,120]
[393775240,1762975094688,-500.0,0.00054246,120]
[393775241,1762975094729,-500.0,0.00054246,120]
[393775242,1762975094769,-500.0,0.00054246,60]
[393775243,1762975094811,-500.0,0.00054246,120]
[393775244,1762975094855,-500.0,0.00054246,120]
[393775245,1762975094896,-500.0,0.00054246,120]
[393775246,1762975094941,-500.0,0.00054246,30]
[393775247,1762975095001,-500.0,0.00054246,120]
[393775248,1762975095046,-500.0,0.00054246,120]
[393775249,1762975095091,-632.55,0.00054246,120]
[393775250,1762975095133,-500.0,0.00054246,120]
[393775251,1762975095175,-500.0,0.00054246,120]
[393775252,1762975095218,-580.36219336,0.00054356,120]
[393775253,1762975095260,-1094.0,0.00054362,30]
[393775254,1762975095305,-500.0,0.00054495,120]
[393775255,1762975095354,-521.41216703,0.00054495,120]
[393775256,1762975095399,-152.00429988,0.00054495,120]
[393775257,1762975095443,-150.0,0.00054495,120]
[393775258,1762975095488,-150.0,0.00054495,120]
[393775259,1762975095531,-150.0,0.00054495,120]
[393775260,1762975095574,-150.0,0.00054495,120]
[393775261,1762975095619,-219.93452428,0.00054495,120]
[393775262,1762975095830,-150.0,0.00054495,120]
[393775263,1762975095878,-154.88521083,0.00054495,120]
[393775264,1762975095922,-150.0,0.00054495,120]
[393775265,1762975095964,-150.0,0.00054495,120]
[393775266,1762975096006,-150.0,0.00054495,120]
[393775267,1762975096048,-150.0,0.00054495,120]
[393775268,1762975096090,-168.76517648,0.00054495,120]
[393775269,1762975096138,-500.0,0.00054495,120]
[393775270,1762975096183,-500.0,0.00054495,120]
[393775271,1762975096226,-500.0,0.00054495,120]
[393775272,1762975096268,-500.0,0.00054495,120]
[393775273,1762975096309,-500.0,0.00054495,120]
[393775274,1762975096350,-500.0,0.00054495,120]
[393775275,1762975096394,-500.0,0.00054495,120]
[393775276,1762975096436,-500.0,0.00054495,120]
[393775277,1762975096476,-500.0,0.00054495,120]
[393775278,1762975096516,-500.0,0.00054495,120]
[393775279,1762975096558,-500.0,0.00054495,120]
[393775280,1762975096599,-500.0,0.00054495,120]
[393775281,1762975096640,-500.0,0.00054495,120]
[393775282,1762975096681,-644.56248889,0.00054495,120]
[393775283,1762975096722,-150.0,0.00054495,120]
[393775284,1762975096763,-150.0,0.00054495,120]
[393775285,1762975096809,-150.0,0.00054495,120]
[393775286,1762975096852,-150.0,0.00054495,120]
[393775287,1762975096895,-150.0,0.00054495,120]
[393775288,1762975096939,-164.39022714,0.00054495,120]
[393775289,1762975096981,-157.99378477,0.00054495,120]
[393775290,1762975097024,-500.0,0.00054495,48]
[393775291,1762975097066,-500.0,0.00054495,48]
[393775292,1762975097106,-500.0,0.00054495,48]
[393775293,1762975097147,-500.0,0.00054495,48]
[393775294,1762975097188,-500.0,0.00054495,48]
[393775295,1762975097228,-500.0,0.00054495,48]
[393775296,1762975097269,-500.0,0.00054495,48]
[393775297,1762975097311,-500.0,0.00054495,48]
[393775298,1762975097350,-500.0,0.00054495,48]
[393775299,1762975097388,-214.4678135,0.00054495,48]
[393775300,1762975097426,-500.0,0.0005452,120]
[393775301,1762975097464,-317.59593302,0.0005452,120]
[393775302,1762975097502,-500.0,0.0005452,60]
[393775303,1762975097538,-500.0,0.0005452,120]
[393775304,1762975097575,-500.0,0.0005452,120]
[393775305,1762975097611,-500.0,0.0005452,120]
[393775306,1762975097653,-500.0,0.0005452,120]
[393775307,1762975097693,-500.0,0.0005452,120]
[393775308,1762975097731,-500.0,0.0005452,120]
[393775309,1762975097777,-500.0,0.0005452,120]
[393775310,1762975097823,-500.0,0.0005452,120]
[393775311,1762975097874,-500.0,0.0005452,120]
[393775312,1762975097920,-500.0,0.0005452,120]
[393775313,1762975097964,-500.0,0.0005452,120]
[393775314,1762975098009,-500.0,0.0005452,120]
[393775315,1762975098150,-500.0,0.0005452,120]
[393775316,1762975098194,-500.0,0.0005452,120]
[393775317,1762975098239,-500.0,0.0005452,120]
[393775318,1762975098284,-500.0,0.0005452,120]
[393775319,1762975098328,-711.22,0.0005452,120]
[393775320,1762975098377,-500.0,0.0005452,120]
[393775321,1762975098422,-500.0,0.0005452,120]
[393775322,1762975098466,-500.0,0.0005452,120]
[393775323,1762975098510,-500.0,0.0005452,120]
[393775324,1762975098552,-500.0,0.0005452,120]
[393775325,1762975098592,-561.35,0.0005452,120]
[393775326,1762975098631,-500.0,0.0005452,120]
[393775327,1762975098672,-561.9,0.0005452,120]
[393775328,1762975098712,-519.17,0.0005452,120]
[393775329,1762975098753,-500.0,0.0005452,120]
[393775330,1762975098793,-519.18,0.0005452,120]
[393775331,1762975098832,-557.81,0.0005452,120]
[393775332,1762975098871,-604.92,0.0005452,120]
[393775333,1762975098914,-693.64,0.0005452,120]
[393775334,1762975098956,-573.2,0.0005452,120]
[393775335,1762975098999,-500.0,0.0005452,120]
[393775336,1762975099042,-500.0,0.0005452,120]
[393775337,1762975099082,-500.0,0.0005452,120]
[393775338,1762975099123,-500.0,0.0005452,120]
[393775339,1762975099163,-500.0,0.0005452,120]
[393775340,1762975099205,-500.0,0.0005452,120]
[393775341,1762975099243,-500.0,0.0005452,120]
[393775342,1762975099281,-500.0,0.0005452,120]
[393775343,1762975099323,-500.0,0.0005452,120]
[393775344,1762975099364,-500.0,0.0005452,120]
[393775345,1762975099407,-595.77,0.0005452,120]
[393775346,1762975099449,-1143.27,0.0005452,120]
[393775347,1762975099490,-500.0,0.0005452,120]
[393775348,1762975099530,-500.0,0.0005452,120]
[393775349,1762975099569,-500.0,0.0005452,120]
[393775350,1762975099610,-506.34,0.0005452,120]
[393775351,1762975099651,-500.0,0.0005452,120]
[393775352,1762975099690,-537.88,0.0005452,120]
[393775353,1762975099729,-500.0,0.0005452,120]
[393775354,1762975099768,-1149.36,0.0005452,120]
[393775355,1762975099807,-718.5,0.0005452,120]
[393775356,1762975099848,-3630.04,0.0005452,120]
[393775357,1762975099889,-500.0,0.0005452,120]
[393775358,1762975099930,-500.0,0.0005452,120]
[393775359,1762975099970,-500.0,0.0005452,120]
[393775360,1762975100009,-500.0,0.0005452,120]
[393775361,1762975100047,-500.0,0.0005452,120]
[393775362,1762975100087,-1045.04,0.0005452,120]
[393775363,1762975100125,-500.0,0.0005452,120]
[393775364,1762975100165,-513.61,0.0005452,120]
[393775365,1762975100209,-500.0,0.0005452,120]
[393775366,1762975100355,-500.0,0.0005452,120]
[393775367,1762975100401,-597.53,0.0005452,120]
[393775368,1762975100445,-1779.43,0.0005452,120]
[393775369,1762975100487,-500.0,0.0005452,120]
[393775370,1762975100528,-500.0,0.0005452,120]
[393775371,1762975100569,-765.1,0.0005452,120]
[393775372,1762975100606,-500.0,0.0005452,120]
[393775373,1762975100642,-1309.98,0.0005452,120]
[393775374,1762975100683,-418.02,0.0005452,120]
[393775375,1762975100721,-533.88,0.0005452,120]
[393775376,1762975100760,-500.0,0.0005452,120]
[393775377,1762975100798,-500.0,0.0005452,120]
[393775378,1762975100837,-500.0,0.0005452,120]
[393775379,1762975100875,-630.65,0.0005452,120]
[393775380,1762975100915,-500.0,0.0005452,120]
[393775381,1762975100954,-500.0,0.0005452,120]
[393775382,1762975100992,-500.0,0.0005452,120]
[393775383,1762975101030,-500.0,0.0005452,120]
[393775384,1762975101070,-500.0,0.0005452,60]
[393775385,1762975101112,-500.0,0.0005452,120]
[393775386,1762975101154,-500.0,0.0005452,120]
[393775387,1762975101196,-500.0,0.0005452,120]
[393775388,1762975101241,-500.0,0.0005452,30]
[393775389,1762975101286,-500.0,0.0005452,120]
[393775390,1762975101339,-632.55,0.0005452,120]
[393775391,1762975101382,-380.77094077,0.0005452,120]
[393775392,1762975101425,-500.0,0.0005452,120]
[393775393,1762975101467,-472.8,0.0005469,120]
[393775394,1762975101508,-500.0,0.00054794,120]
[393775395,1762975101549,-580.6856592,0.00054794,60]
[393775396,1762975101590,-500.0,0.00054794,120]
[393775397,1762975101628,-500.0,0.00054794,120]
[393775398,1762975101670,-500.0,0.00054794,120]
[393775399,1762975101713,-500.0,0.00054794,120]
[393775400,1762975101757,-500.0,0.00054794,120]
[393775401,1762975101801,-500.0,0.00054794,120]
[393775402,1762975101845,-500.0,0.00054794,120]
[393775403,1762975101886,-500.0,0.00054794,120]
[393775404,1762975101929,-500.0,0.00054794,120]
[393775405,1762975101972,-500.0,0.00054794,120]
[393775406,1762975102012,-500.0,0.00054794,120]
[393775407,1762975102053,-500.0,0.00054794,120]
[393775408,1762975102094,-500.0,0.00054794,120]
[393775409,1762975102135,-711.22,0.00054794,120]
[393775410,1762975102179,-500.0,0.00054794,120]
[393775411,1762975102222,-500.0,0.00054794,120]
[393775412,1762975102269,-500.0,0.00054794,120]
[393775413,1762975102314,-500.0,0.00054794,120]
[393775414,1762975102355,-561.35,0.00054794,120]
[393775415,1762975102500,-500.0,0.00054794,120]
[393775416,1762975102543,-561.9,0.00054794,120]
[393775417,1762975102584,-519.17,0.00054794,120]
[393775418,1762975102626,-500.0,0.00054794,120]
[393775419,1762975102671,-557.81,0.00054794,120]
[393775420,1762975102715,-604.92,0.00054794,120]
[393775421,1762975102756,-693.64,0.00054794,120]
[393775422,1762975102802,-573.2,0.00054794,120]
[393775423,1762975102847,-500.0,0.00054794,120]
[393775424,1762975102888,-500.0,0.00054794,120]
[393775425,1762975102928,-500.0,0.00054794,120]
[393775426,1762975102968,-500.0,0.00054794,120]
[393775427,1762975103009,-500.0,0.00054794,120]
[393775428,1762975103052,-500.0,0.00054794,120]
[393775429,1762975103097,-500.0,0.00054794,120]
[393775430,1762975103141,-500.0,0.00054794,120]
[393775431,1762975103185,-595.77,0.00054794,120]
[393775432,1762975103227,-1143.27,0.00054794,120]
[393775433,1762975103267,-500.0,0.00054794,120]
[393775434,1762975103309,-500.0,0.00054794,120]
[393775435,1762975103351,-500.0,0.00054794,120]
[393775436,1762975103395,-506.34,0.00054794,120]
[393775437,1762975103437,-500.0,0.00054794,120]
[393775438,1762975103481,-537.88,0.00054794,120]
[393775439,1762975103556,-500.0,0.00054794,120]
[393775440,1762975103630,-1149.36,0.00054794,120]
[393775441,1762975103704,-718.5,0.00054794,120]
[393775442,1762975103779,-3630.04,0.00054794,120]
[393775443,1762975103848,-500.0,0.00054794,120]
[393775444,1762975103911,-500.0,0.00054794,120]
[393775445,1762975103970,-500.0,0.00054794,120]
[393775446,1762975104031,-500.0,0.00054794,120]
[393775447,1762975104092,-1045.04,0.00054794,120]
[393775448,1762975104156,-500.0,0.00054794,120]
[393775449,1762975104222,-513.61,0.00054794,120]
[393775450,1762975104285,-500.0,0.00054794,120]
[393775451,1762975104352,-500.0,0.00054794,120]
[393775452,1762975104413,-597.53,0.00054794,120]
[393775453,1762975104473,-1779.43,0.00054794,120]
[393775454,1762975104528,-500.0,0.00054794,120]
[393775455,1762975104586,-765.1,0.00054794,120]
[393775456,1762975104642,-500.0,0.00054794,120]
[393775457,1762975104701,-1309.98,0.00054794,120]
[393775458,1762975104766,-533.88,0.00054794,120]
[393775459,1762975104829,-500.0,0.00054794,120]
[393775460,1762975104893,-500.0,0.00054794,120]
[393775461,1762975104957,-500.0,0.00054794,120]
[393775462,1762975105021,-630.65,0.00054794,120]
[393775463,1762975105206,-500.0,0.00054794,120]
[393775464,1762975105251,-500.0,0.00054794,120]
[393775465,1762975105299,-500.0,0.00054794,120]
[393775466,1762975105345,-437.74,0.00054794,120]
[393775467,1762975105390,-500.0,0.00054794,60]
[393775468,1762975105433,-500.0,0.00054794,120]
[393775469,1762975105477,-413.79,0.00054794,120]
[393775470,1762975105521,-500.0,0.00054794,30]
[393775471,1762975105562,-500.0,0.00054794,120]
[393775472,1762975105607,-632.55,0.00054794,120]
[393775473,1762975105651,-500.0,0.00054794,120]
[393775474,1762975105695,-150.0,0.00054795,120]
[393775475,1762975105736,-150.0,0.00054795,120]
[393775476,1762975105777,-150.0,0.00054795,120]
[393775477,1762975105820,-150.0,0.00054795,120]
[393775478,1762975105862,-150.0,0.00054795,120]
[393775479,1762975105909,-150.0,0.00054795,120]
[393775480,1762975105957,-150.0,0.00054795,120]
[393775481,1762975106002,-150.0,0.00054795,120]
[393775482,1762975106046,-150.0,0.00054795,120]
[393775483,1762975106092,-150.0,0.00054795,120]
[393775484,1762975106136,-150.0,0.00054795,120]
[393775485,1762975106178,-150.0,0.00054795,120]
[393775486,1762975106220,-150.0,0.00054795,120]
[393775487,1762975106262,-150.0,0.00054795,120]
[393775488,1762975106306,-150.0,0.00054795,120]
[393775489,1762975106349,-150.0,0.00054795,120]
[393775490,1762975106392,-500.0,0.00054795,35]
[393775491,1762975106435,-150.0,0.00054852,120]
[393775492,1762975106479,-150.0,0.00054876,120]
[393775493,1762975106522,-150.0,0.00054877,120]
[393775494,1762975106564,-150.0,0.00054884,120]
[393775495,1762975106612,-150.0,0.00054903,120]
[393775496,1762975106667,-150.0,0.0005491,120]
[393775497,1762975106720,-150.0,0.00054925,120]
[393775498,1762975106770,-150.0,0.00054928,120]
[393775499,1762975106821,-150.0,0.00054957,120]
[393775500,1762975106870,-150.0,0.0005496,120]
[393775501,1762975106916,-150.0,0.00054968,120]
[393775502,1762975106961,-150.0,0.00054974,120]
[393775503,1762975107005,-150.0,0.00054995,120]
[393775504,1762975107052,-50000.0,0.00055,85]
[393775505,1762975107102,-255.27,0.00055,120]
[393775506,1762975107150,-255.37,0.00055,120]
[393775507,1762975107197,-180.0,0.00055,60]
[393775508,1762975107243,-216.78,0.00055,120]
[393775509,1762975107289,-214.65736459,0.00055,120]
[393775510,1762975107339,-318.96516036,0.00055,120]
[393775511,1762975107385,-500.0,0.00055,30]
[393775512,1762975107429,-290.96,0.00055,120]
[393775513,1762975107473,-153.0,0.00055,120]
[393775514,1762975107517,-8287.0,0.00055,120]
[393775515,1762975107558,-50000.0,0.00055,120]
[393775516,1762975107600,-2000.0,0.00055,120]
[393775517,1762975107640,-1157.84,0.00055,120]
[393775518,1762975107681,-1771.91,0.00055,120]
[393775519,1762975107721,-150.0,0.00055011,120]
[393775520,1762975107761,-150.0,0.00055026,120]
[393775521,1762975107801,-150.0,0.00055039,120]
[393775522,1762975107841,-150.0,0.00055042,120]
[393775523,1762975108015,-150.0,0.00055055,120]
[393775524,1762975108062,-150.0,0.00055061,120]
[393775525,1762975108109,-150.0,0.00055064,120]
[393775526,1762975108158,-500.0,0.00055068,120]
[393775527,1762975108207,-500.0,0.00055068,120]
[393775528,1762975108257,-500.0,0.00055068,120]